fUSD/lending_fUSD_20240214
["ID","MTS","AMOUNT","RATE_DAILY","PERIOD"]
[314033590,1707930649355,-151.0,0.00038356,7]
[314033591,1707930649365,-151.0,0.00038356,7]
[314033592,1707930649374,-151.0,0.00038356,7]
[314033593,1707930649383,-151.0,0.00038356,7]
[314033594,1707930649393,-151.0,0.00038356,7]
[314033595,1707930649403,-255.960537,0.00038356,7]
[314033596,1707930649412,-797.8,0.000384,7]
[314033597,1707930649422,-1154.82,0.000384,7]
[314033598,1707930649431,-6000.0,0.000384,2]
[314033599,1707930649440,-153.75236828,0.00038404,2]
[314033600,1707930649449,-2098.0,0.00038434,20]
[314033601,1707930649458,-432.0,0.00038434,20]
[314033602,1707930649468,-1586.960067,0.000386,7]
[314033603,1707930649477,-150.0,0.000386,28]
[314033604,1707930649487,-902.0,0.0003864,2]
[314033605,1707930649496,-21005.39927813,0.000388,4]
[314033606,1707930649506,-150.1,0.000388,2]
[314033607,1707930649516,-2098.0,0.0003883,20]
[314033608,1707930649525,-432.0,0.0003883,20]
[314033609,1707930649534,-8411.16177715,0.00038843,2]
[314033610,1707930649544,-153.75236828,0.00038852,2]
[314033611,1707930649553,-411.76,0.00038887,2]
[314033612,1707930649562,-411.76,0.00038887,2]
[314033613,1707930649571,-718.54,0.00038887,2]
[314033614,1707930649581,-200.0,0.0003891,20]
[314033615,1707930649590,-4204.0,0.00038925,2]
[314033616,1707930649600,-7583.642,0.00038925,2]
[314033617,1707930649609,-202.0,0.00038967,22]
[314033618,1707930649619,-460.02564019,0.00038967,2]
[314033619,1707930649628,-150.0,0.00038969,2]
[314033620,1707930649637,-113057.6017,0.0003897,2]
[314033621,1707930649646,-1916.65155742,0.0003897,2]
[314033622,1707930649655,-283.46555077,0.0003898,2]
[314033623,1707930649665,-200.0,0.00038987,4]
[314033624,1707930649674,-200.0,0.00038987,2]
[314033625,1707930649684,-200.0,0.00038987,3]
[314033626,1707930649693,-100000.0,0.00039,9]
[314033627,1707930649703,-9482.95520342,0.00039,2]
[314033628,1707930649712,-1359.027365,0.00039,2]
[314033629,1707930649721,-863.41656844,0.00039,4]
[314033630,1707930649730,-155.0,0.00039,5]
[314033631,1707930649740,-12375.0,0.00039,2]
[314033632,1707930649749,-1154.82,0.00039,7]
[314033633,1707930649761,-124192.54639167,0.00039,2]
[314033634,1707930649770,-3034.65705597,0.00039007,12]
[314033635,1707930649779,-150.0,0.00039056,7]
[314033636,1707930649788,-797.8,0.000391,7]
[314033637,1707930649798,-150.0,0.000391,28]
[314033638,1707930649807,-5001.74,0.0003911,2]
[314033639,1707930649817,-152.0,0.00039118,3]
[314033640,1707930649827,-3000.0,0.000392,38]
[314033641,1707930649836,-3000.0,0.0003921,38]
[314033642,1707930649845,-5477.23002,0.0003922,38]
[314033643,1707930649855,-2098.0,0.00039226,20]
[314033644,1707930649864,-432.0,0.00039226,20]
[314033645,1707930649874,-1000.0,0.0003926,2]
[314033646,1707930649883,-153.75236828,0.00039299,4]
[314033647,1707930649892,-317.44,0.00039435,2]
[314033648,1707930649901,-1792.88403988,0.000395,4]
[314033649,1707930649911,-1600.0,0.000395,12]
[314033650,1707930649920,-153.71,0.000395,3]
[314033651,1707930649930,-153.71,0.000395,3]
[314033652,1707930649940,-153.71,0.000395,3]
[314033653,1707930649949,-153.71,0.000395,3]
[314033654,1707930649959,-153.71,0.000395,3]
[314033655,1707930649968,-153.71,0.000395,3]
[314033656,1707930649978,-153.71,0.000395,3]
[314033657,1707930649989,-153.71,0.000395,3]
[314033658,1707930649998,-22542.96997442,0.0003957,2]
[314033659,1707930650008,-162.0,0.000396,29]
[314033660,1707930650018,-202.0,0.00039605,23]
[314033661,1707930650028,-308.77613817,0.00039622,20]
[314033662,1707930650038,-2098.0,0.00039622,20]
[314033663,1707930650048,-432.0,0.00039622,20]
[314033664,1707930650058,-1655.59416181,0.00039622,20]
[314033665,1707930650069,-7362.48,0.0003963,2]
[314033666,1707930650079,-200.0,0.00039649,15]
[314033667,1707930650089,-200.0,0.00039649,20]
[314033668,1707930650099,-500.0,0.00039649,20]
[314033669,1707930650108,-1451.37,0.000397,3]
[314033670,1707930650117,-1451.37,0.000397,3]
[314033671,1707930650127,-1451.37,0.000397,3]
[314033672,1707930650136,-1451.37,0.000397,3]
[314033673,1707930650146,-1451.37,0.000397,3]
[314033674,1707930650156,-1451.37,0.000397,3]
[314033675,1707930650165,-1451.37,0.000397,3]
[314033676,1707930650176,-1451.37,0.000397,3]
[314033677,1707930650185,-1451.37,0.000397,3]
[314033678,1707930650195,-1451.37,0.000397,3]
[314033679,1707930650204,-1451.37,0.000397,3]
[314033680,1707930650214,-1451.37,0.000397,3]
[314033681,1707930650224,-1451.37,0.000397,3]
[314033682,1707930650234,-1451.37,0.000397,3]
[314033683,1707930650243,-1451.37,0.000397,3]
[314033684,1707930650252,-1451.37,0.000397,3]
[314033685,1707930650263,-1451.37,0.000397,3]
[314033686,1707930650272,-1451.37,0.000397,3]
[314033687,1707930650282,-1451.37,0.000397,3]
[314033688,1707930650291,-1451.37,0.000397,3]
[314033689,1707930650300,-329.61393837,0.000397,4]
[314033690,1707930650310,-500.0,0.00039726,15]
[314033691,1707930650319,-150.84,0.00039726,2]
[314033692,1707930650329,-153.75236828,0.00039747,5]
[314033693,1707930650339,-797.8,0.000398,7]
[314033694,1707930650348,-1154.82,0.000398,7]
[314033695,1707930650358,-411.76,0.0003983,2]
[314033696,1707930650367,-411.76,0.0003983,2]
[314033697,1707930650377,-411.76,0.0003983,2]
[314033698,1707930650386,-823.52,0.0003983,2]
[314033699,1707930650395,-2819.42547142,0.00039864,2]
[314033700,1707930650405,-422.25,0.00039875,2]
[314033701,1707930650414,-150.0,0.00039875,2]
[314033702,1707930650424,-1027.40490905,0.000399,2]
[314033703,1707930650433,-266.71133846,0.000399,31]
[314033704,1707930650442,-5742.50123291,0.000399,2]
[314033705,1707930650451,-568.15830673,0.000399,2]
[314033706,1707930650461,-797.04384765,0.000399,2]
[314033707,1707930650470,-3034.65705597,0.00039918,13]
[314033708,1707930650479,-188.0,0.00039944,7]
[314033709,1707930650488,-154.0,0.00039944,7]
[314033710,1707930650498,-150.0,0.00039969,2]
[314033711,1707930650509,-200.0,0.00039987,5]
[314033712,1707930650517,-200.0,0.00039987,3]
[314033713,1707930650527,-2300.12820095,0.00039997,2]
[314033714,1707930650536,-150.0,0.00039999,30]
[314033715,1707930650546,-500.0,0.00039999,31]
[314033716,1707930650555,-474.7276594,0.00039999,31]
[314033717,1707930650565,-500.0,0.00039999,31]
[314033718,1707930650575,-150.0,0.00039999,2]
[314033719,1707930650584,-150.0,0.00039999,2]
[314033720,1707930650594,-150.0,0.00039999,2]
[314033721,1707930650604,-150.0,0.00039999,2]
[314033722,1707930650614,-150.0,0.00039999,2]
[314033723,1707930650623,-150.0,0.00039999,2]
[314033724,1707930650633,-150.0,0.00039999,2]
[314033725,1707930650643,-150.0,0.00039999,2]
[314033726,1707930650653,-100000.0,0.0004,30]
[314033727,1707930650663,-2855.44557418,0.0004,4]
[314033728,1707930650672,-27709.97333728,0.0004,4]
[314033729,1707930650682,-1649.85917561,0.0004,4]
[314033730,1707930650691,-447.21066158,0.0004,4]
[314033731,1707930650702,-155.0,0.0004,2]
[314033732,1707930650712,-5474.56276286,0.0004,4]
[314033733,1707930650721,-1363.64719264,0.0004,4]
[314033734,1707930650731,-204013.04411182,0.0004,4]
[314033735,1707930651518,-699.19383272,0.0004,4]
[314033736,1707930651544,-418.24314365,0.00022364,2]
[314033737,1707930651554,-295287.76205546,0.0004,4]
[314033738,1707930651564,-9864.34180393,0.0004,4]
[314033739,1707930651573,-155.0,0.0004,4]
[314033740,1707930651583,-436.0,0.0004,3]
[314033741,1707930651592,-1000.0,0.0004,10]
[314033742,1707930651602,-632.0,0.0004,8]
[314033743,1707930651611,-139743.93719792,0.0004,30]
[314033744,1707930651639,-730.59583916,0.000349,2]
[314033745,1707930651648,-1063.89441722,0.0004,30]
[314033746,1707930651660,-2908.6739777,0.0004,30]
[314033747,1707930652571,-155.0,0.00022364,2]
[314033748,1707930652580,-1348.21919698,0.00022364,2]
[314033749,1707930652589,-1374.23949988,0.0004,30]
[314033750,1707930652600,-279.14500666,0.0004,30]
[314033751,1707930652738,-216.77793244,0.00022341,2]
[314033752,1707930652748,-530.09448258,0.00036886,2]
[314033753,1707930652758,-2694.35320625,0.0004,30]
[314033754,1707930652772,-717.68395454,0.0004,30]
[314033755,1707930652784,-1252.90040018,0.0004,30]
[314033756,1707930652796,-1568.2537024,0.0004,30]
[314033757,1707930652809,-1010.86100016,0.0004,30]
[314033758,1707930652821,-1003.5175131,0.0004,30]
[314033759,1707930654013,155.92143527,0.00022251,2]
[314033760,1707930658016,4801.788,0.00022268,2]
[314033761,1707930664992,-234.49046886,0.00022363,2]
[314033762,1707930665011,-346.46982578,0.00022363,2]
[314033763,1707930665033,-475.57529817,0.00022363,2]
[314033764,1707930665053,-343.46440719,0.00022363,2]
[314033765,1707930836425,78734.118,0.00022283,2]
[314033766,1707930887446,1000.0,0.00022283,2]
[314033767,1707930888679,177.24818758,0.00022257,2]
[314033768,1707930999724,3818.8153,0.00022283,2]
[314033773,1707931127133,1000.0,0.00022283,2]
[314033775,1707931241385,601.74,0.00022249,2]
[314033776,1707931255146,283.66,0.00024131,7]
[314033777,1707931266306,909.41463107,0.00022283,2]
[314033778,1707931284378,979.33858356,0.00022283,2]
[314033779,1707931286582,191.40793623,0.00022283,2]
[314033780,1707931440702,2102.24239584,0.00022283,2]
[314033781,1707931504068,2500.0,0.00022283,2]
[314033782,1707931512363,13499.1843,0.00022283,2]
[314033783,1707931515055,498.7415,0.00022283,2]
[314033784,1707931582552,44065.35925899,0.00022283,2]
[314033785,1707931602158,-176.0207464,0.00022282,2]
[314033786,1707931629873,2705.0,0.00022064,2]
[314033787,1707931644228,171.43,0.00017513,2]
[314033788,1707931661432,330.54,0.00021918,2]
[314033789,1707931708046,304.19852659,0.00021613,2]
[314033790,1707931730388,583.53,0.00020129,2]
[314033799,1707931805986,10000.0,0.00021918,2]
[314033800,1707931809048,250.0,0.00021712,2]
[314033801,1707931827901,250.0,0.00021918,2]
[314033820,1707931831559,-375.96361041,0.00022212,2]
[314033821,1707931831569,-216.77793244,0.00022212,2]
[314033822,1707931831579,-191.99950111,0.00022212,2]
[314033823,1707931831588,-170.25128153,0.00022213,2]
[314033824,1707931831601,-474.43698901,0.00022213,2]
[314033825,1707931831612,-323.75358582,0.00022213,2]
[314033826,1707931831624,-1828.27829736,0.00022213,2]
[314033827,1707931831633,-2029.44709813,0.00022213,2]
[314033828,1707931831643,-155.35,0.00022215,2]
[314033829,1707931831652,-16861.25449395,0.00022227,2]
[314033830,1707931831662,-300.0,0.00022228,2]
[314033831,1707931831671,-150.0,0.00022228,2]
[314033832,1707931831681,-500.0,0.0002223,2]
[314033833,1707931831690,-172.13,0.00022243,2]
[314033834,1707931831699,-175.23,0.00022244,2]
[314033835,1707931831709,-2029.06413484,0.00022283,2]
[314033836,1707931831719,-6802.89631261,0.00022283,2]
[314033837,1707931831737,-780.34134099,0.00022283,2]
[314033838,1707931831748,-20381.11650543,0.00022283,2]
[314033839,1707931831762,-8100.79182278,0.00022283,2]
[314033849,1707931831850,-577.89161795,0.00022283,2]
[314033851,1707931831862,-3939.07253238,0.00022283,2]
[314033854,1707931831878,-2304.11621744,0.00022283,2]
[314033856,1707931831889,-862.90197581,0.00022283,2]
[314033890,1707931837602,-1254.48307782,0.00022283,2]
[314033911,1707931837907,-0.54807378,0.00022283,2]
[314033927,1707931840131,-3054.24476402,0.00022283,2]
[314033928,1707931840140,-488.3893,0.00022283,2]
[314033929,1707931840149,-3852.0880558,0.00022283,2]
[314033930,1707931840845,-3666.1803442,0.00022283,2]
[314033931,1707931840854,-1927.52,0.00022283,2]
[314033932,1707931840863,-499.99,0.00022283,2]
[314033933,1707931840872,-176.15,0.00022283,2]
[314033934,1707931840882,-200.0,0.00022336,2]
[314033935,1707931840890,-155.0,0.00022363,2]
[314033936,1707931840899,-807.48708095,0.00022363,2]
[314033937,1707931840908,-4723.35235733,0.00022363,2]
[314033938,1707931840917,-155.0,0.00022363,2]
[314033939,1707931840926,-316.11917974,0.00022363,2]
[314033940,1707931840935,-175.87836432,0.00022363,2]
[314033941,1707931840944,-172.68779467,0.00022363,2]
[314033942,1707931840953,-17111.83023411,0.00022372,2]
[314033943,1707931840962,-11243.77,0.00022372,2]
[314033944,1707931840971,-176.01911523,0.0002238,2]
[314033945,1707931840980,-155.35,0.0002238,2]
[314033946,1707931840990,-945.90283649,0.00022381,2]
[314033947,1707931840999,-264.96909026,0.00022381,2]
[314033948,1707931841008,-500.0,0.00022381,2]
[314033949,1707931841018,-1047.61752499,0.00022381,2]
[314033950,1707931841028,-49628.44294302,0.00022382,2]
[314033951,1707931841037,-1000.0,0.00022383,2]
[314033952,1707931841046,-42889.84842149,0.00022383,2]
[314033967,1707931841207,-286.5400961,0.00022383,2]
[314033970,1707931841219,-1424.40289611,0.00022383,2]
[314033972,1707931841231,-1484.16970284,0.00022383,2]
[314033976,1707931841256,-6221.88015283,0.00022383,2]
[314034063,1707931842460,-902.71804773,0.00022383,2]
[314034064,1707931842479,-27556.96630919,0.00022383,2]
[314034065,1707931842518,-3309.98203521,0.00022383,2]
[314034066,1707931842529,-4941.41922878,0.00022383,2]
[314034067,1707931842576,-1012.75295052,0.00022383,2]
[314034068,1707931842587,-7660.77272715,0.00022383,2]
[314034069,1707931842598,-4982.6,0.00022383,2]
[314034070,1707931842634,-4965.2603,0.00022383,2]
[314034071,1707931842645,-24519.47934415,0.00022383,2]
[314034072,1707931842657,-2515.745745,0.00022383,2]
[314034073,1707931842745,-3086.83101021,0.00022383,2]
[314034101,1707931845418,-1491.46348802,0.00022381,2]
[314034103,1707931845427,-8671.86896584,0.00022383,2]
[314034105,1707931845439,-98566.76206685,0.00022383,2]
[314034107,1707931845448,-2807.74,0.00022383,2]
[314034109,1707931845458,-20409.44,0.00022383,2]
[314034111,1707931845468,-583.53,0.00022393,2]
[314034113,1707931845476,-155.35,0.00022546,2]
[314034115,1707931845485,-2399.35,0.00022611,2]
[314034117,1707931845495,-2000.0,0.00022693,2]
[314034119,1707931845504,-150.0,0.00022693,2]
[314034121,1707931845514,-155.35,0.00022711,2]
[314034123,1707931845523,-23900.0,0.00022772,2]
[314034125,1707931845532,-161.19517606,0.000228,2]
[314034126,1707931845542,-155.35,0.00022877,2]
[314034127,1707931845550,-2609.07512197,0.00023,2]
[314034128,1707931845559,-155.35,0.00023042,2]
[314034130,1707931845568,-155.35,0.00023207,2]
[314034132,1707931845578,-155.35,0.00023373,2]
[314034134,1707931845587,-200.0,0.00023584,2]
[314034136,1707931845597,-200.0,0.00023891,2]
[314034138,1707931845606,-205.27,0.00023968,2]
[314034140,1707931845615,-166.02,0.00023987,2]
[314034142,1707931845624,-1338.71,0.00024151,2]
[314034144,1707931845633,-2982.62,0.00024384,2]
[314034146,1707931845643,-210.0,0.00024451,2]
[314034148,1707931845652,-4212.86,0.00024462,2]
[314034150,1707931845661,-1188.68,0.00024489,2]
[314034152,1707931845671,-19252.21979484,0.000246,2]
[314034154,1707931845681,-583.53,0.00024657,2]
[314034156,1707931845690,-250.0,0.00024658,2]
[314034158,1707931845700,-625.90252472,0.00024799,2]
[314034160,1707931845709,-2029.06413484,0.00024943,2]
[314034162,1707931845718,-3000.0,0.00025,2]
[314034164,1707931845728,-1250.0,0.00025,3]
[314034165,1707931845737,-3000.0,0.0002501,2]
[314034166,1707931845746,-3000.0,0.0002502,2]
[314034167,1707931845756,-3000.0,0.0002503,2]
[314034168,1707931845765,-3000.0,0.0002504,2]
[314034169,1707931845774,-3000.0,0.0002505,2]
[314034170,1707931845783,-3000.0,0.0002506,2]
[314034171,1707931845793,-3000.0,0.0002507,2]
[314034172,1707931845802,-3000.0,0.0002508,2]
[314034173,1707931845812,-3000.0,0.0002509,2]
[314034175,1707931845822,-4308.801568,0.000251,2]
[314034177,1707931845831,-220.0,0.00026896,2]
[314034179,1707931845840,-583.53,0.00026921,2]
[314034181,1707931845849,-1000.0,0.00027205,2]
[314034183,1707931845859,-2029.06413484,0.00027602,3]
[314034185,1707931845868,-214.8652949,0.0002799,2]
[314034187,1707931845877,-969.27668517,0.00028,2]
[314034189,1707931845886,-172026.49899771,0.00028,2]
[314034191,1707931845895,-982.15512248,0.000283,2]
[314034193,1707931845905,-150.0,0.000284,2]
[314034194,1707931845914,-583.53,0.00029185,2]
[314034195,1707931845923,-4032.10691508,0.0003,2]
[314034196,1707931845932,-155.0,0.0003,2]
[314034197,1707931845942,-500.0,0.0003,2]
[314034198,1707931845952,-1100.0,0.0003,4]
[314034199,1707931845961,-2029.06413484,0.00030262,5]
[314034200,1707931845970,-1000.0,0.00030605,2]
[314034201,1707931845980,-1000.0,0.000307,2]
[314034202,1707931845990,-3467.528206,0.00031171,2]
[314034203,1707931845999,-2855.0,0.000312,2]
[314034204,1707931846008,-22122.0,0.000312,2]
[314034205,1707931846018,-583.53,0.00031449,2]
[314034206,1707931846028,-210.25096486,0.00031577,2]
[314034207,1707931846038,-693.15683604,0.00031577,2]
[314034208,1707931846047,-180.0,0.00031644,2]
[314034209,1707931846057,-124921.96632571,0.00031677,7]
[314034210,1707931846067,-10486.40237604,0.00031677,7]
[314034211,1707931846077,-22491.4866111,0.00031677,7]
[314034212,1707931846087,-17771.26737401,0.00031677,7]
[314034213,1707931846097,-153.97,0.000326,2]
[314034214,1707931846106,-150.84,0.00032877,2]
[314034215,1707931846116,-254.36,0.00032877,2]
[314034216,1707931846126,-1017.06598708,0.00032978,4]
[314034217,1707931846135,-276.61021592,0.00032978,3]
[314034218,1707931846145,-200.0,0.00033062,5]
[314034219,1707931846155,-1000.0,0.000334,2]
[314034220,1707931846164,-320.46,0.000335,2]
[314034221,1707931846174,-320.46,0.000335,2]
[314034222,1707931846184,-320.46,0.000335,2]
[314034223,1707931846194,-320.46,0.000335,2]
[314034224,1707931846204,-320.46,0.000335,2]
[314034225,1707931846213,-320.46,0.000335,2]
[314034226,1707931846223,-320.46,0.000335,2]
[314034227,1707931846233,-320.46,0.000335,2]
[314034228,1707931846242,-320.46,0.000335,2]
[314034229,1707931846252,-320.46,0.000335,2]
[314034230,1707931846263,-320.46,0.000335,2]
[314034231,1707931846273,-320.46,0.000335,2]
[314034232,1707931846283,-320.46,0.000335,2]
[314034233,1707931846293,-320.46,0.000335,2]
[314034234,1707931846303,-320.46,0.000335,2]
[314034235,1707931846313,-320.46,0.000335,2]
[314034236,1707931846326,-320.46,0.000335,2]
[314034237,1707931846336,-320.46,0.000335,2]
[314034238,1707931846346,-320.46,0.000335,2]
[314034239,1707931846355,-320.46,0.000335,2]
[314034240,1707931846366,-210.25096484,0.00033658,2]
[314034241,1707931846375,-583.53,0.00033713,2]
[314034242,1707931846385,-1000.0,0.00034006,2]
[314034243,1707931846395,-443.70375436,0.00034789,15]
[314034244,1707931846404,-206.53142415,0.00034789,15]
[314034245,1707931846414,-3993.86529537,0.0003479,2]
[314034246,1707931846423,-3993.86529529,0.0003479,2]
[314034247,1707931846433,-3993.86529529,0.0003479,2]
[314034248,1707931846442,-3993.86529529,0.0003479,2]
[314034249,1707931846452,-3993.86529529,0.0003479,2]
[314034250,1707931846461,-3993.86529529,0.0003479,2]
[314034251,1707931846470,-3993.86529529,0.0003479,2]
[314034252,1707931846480,-841.11617776,0.00034799,2]
[314034253,1707931846490,-841.11617771,0.00034799,2]
[314034254,1707931846500,-841.11617771,0.00034799,2]
[314034255,1707931846510,-841.11617771,0.00034799,2]
[314034256,1707931846519,-841.11617771,0.00034799,2]
[314034257,1707931846528,-841.11617771,0.00034799,2]
[314034258,1707931846538,-841.11617771,0.00034799,2]
[314034259,1707931846547,-153.97,0.000349,2]
[314034260,1707931846556,-153.97,0.000349,2]
[314034261,1707931846566,-1127.77018872,0.000349,2]
[314034262,1707931846577,-1127.77018856,0.000349,2]
[314034263,1707931846587,-1127.77018856,0.000349,2]
[314034264,1707931846596,-1127.77018856,0.000349,2]
[314034265,1707931846606,-1127.77018856,0.000349,2]
[314034266,1707931846615,-1127.77018856,0.000349,2]
[314034267,1707931846624,-1127.77018856,0.000349,2]
[314034268,1707931846633,-74530.12636012,0.00035,4]
[314034269,1707931846643,-507.60582837,0.00035,2]
[314034270,1707931846652,-354.04,0.00035,2]
[314034271,1707931846662,-168.62,0.00035536,2]
[314034272,1707931846671,-320.46,0.000356,3]
[314034273,1707931846680,-320.46,0.000356,3]
[314034274,1707931846690,-320.46,0.000356,3]
[314034275,1707931846699,-320.46,0.000356,3]
[314034276,1707931846709,-320.46,0.000356,3]
[314034277,1707931846719,-320.46,0.000356,3]
[314034278,1707931846728,-320.46,0.000356,3]
[314034279,1707931846738,-320.46,0.000356,3]
[314034280,1707931846747,-320.46,0.000356,3]
[314034281,1707931846757,-320.46,0.000356,3]
[314034282,1707931846766,-320.46,0.000356,3]
[314034283,1707931846775,-320.46,0.000356,3]
[314034284,1707931846785,-320.46,0.000356,3]
[314034285,1707931846794,-320.46,0.000356,3]
[314034286,1707931846804,-320.46,0.000356,3]
[314034287,1707931846813,-320.46,0.000356,3]
[314034288,1707931846823,-320.46,0.000356,3]
[314034289,1707931846833,-320.46,0.000356,3]
[314034290,1707931846842,-320.46,0.000356,3]
[314034291,1707931846851,-320.46,0.000356,3]
[314034292,1707931846861,-1127.77018856,0.0003561,2]
[314034293,1707931846870,-150.84,0.00035616,2]
[314034294,1707931846879,-2982.62,0.00035616,2]
[314034295,1707931846889,-28057.05658254,0.0003562,3]
[314034296,1707931846904,-25654.02838265,0.0003562,3]
[314034297,1707931847007,-0.15981307,0.0003562,3]
[314034298,1707931847055,-7816.59941405,0.00022381,2]
[314034299,1707931847095,-1306.24536132,0.00022381,2]
[314034300,1707931847107,-7738.40971858,0.00022381,2]
[314034301,1707931847117,-520.93448971,0.00022382,2]
[314034302,1707931847126,-47351.6414085,0.0003562,3]
[314034303,1707931847154,-387.12945048,0.0003562,3]
[314034304,1707931847167,-584.9078807,0.0003562,3]
[314034305,1707931866601,403.98004389,0.00021061,2]
[314034306,1707931873418,166.42749765,0.00021495,2]
[314034307,1707931905106,267.66635624,0.00021495,2]
[314034319,1707932028796,395.50245846,0.0002,2]
[314034322,1707932217029,268.16092729,0.0002,2]
[314034323,1707932230595,448.87194362,0.0001983,2]
[314034324,1707932231014,268.16092729,0.0002,2]
[314034325,1707932250539,448.87194362,0.0001983,2]
[314034326,1707932257017,268.16092729,0.0002,2]
[314034327,1707932266542,448.87194362,0.0001983,2]
[314034328,1707932277034,268.16092729,0.0002,2]
[314034329,1707932288542,206.18604378,0.0001983,2]
[314034330,1707932347372,-216.77793244,0.00022173,2]
[314034331,1707932347404,-155.0,0.00022174,2]
[314034332,1707932347431,-1958.15673038,0.00022174,2]
[314034333,1707932347462,-192.36254521,0.00022183,2]
[314034334,1707932347493,-188.4559,0.00022183,2]
[314034335,1707932347520,-222.989,0.00022183,2]
[314034336,1707932347549,-2331.83893311,0.00022281,2]
[314034337,1707932347579,-4731.9719,0.00022282,2]
[314034338,1707932347607,-900.0,0.00022283,2]
[314034339,1707932347635,-2249.1567,0.00022283,2]
[314034340,1707932347678,-1000.0,0.00022283,2]
[314034341,1707932347710,-1161.0181,0.00022283,2]
[314034342,1707932347741,-2017.7687,0.00022283,2]
[314034343,1707932347775,-55974.50355886,0.00022283,2]
[314034396,1707933031734,-329.7576,0.00022183,2]
[314034397,1707933031747,-1554.55928874,0.00022281,2]
[314034398,1707933031756,-740.13951687,0.00022282,2]
[314034399,1707933031766,-27666.0233763,0.00022283,2]
[314034400,1707933031799,-7203.11234138,0.00022283,2]
[314034401,1707933031810,-7022.52047064,0.00022283,2]
[314034402,1707933031822,-5442.18539446,0.00022283,2]
[314034403,1707933031834,-15261.79245012,0.00022283,2]
[314034404,1707933031848,-449.57833095,0.00022283,2]
[314034405,1707933031859,-55997.55517729,0.00022283,2]
[314034406,1707933031868,-2027.81074657,0.00022381,2]
[314034407,1707933031878,-9998.82349658,0.00022381,2]
[314034408,1707933031888,-159.19045578,0.00022382,2]
[314034409,1707933031897,-289.37095772,0.00022382,2]
[314034410,1707933031906,-2609.07512197,0.00023,2]
[314034412,1707933031915,-2525.2473,0.000245,2]
[314034413,1707933031924,-756.2999,0.000245,2]
[314034415,1707933031933,-175.02,0.00024585,2]
[314034417,1707933031942,-499.99,0.00024585,2]
[314034419,1707933031952,-19252.21979484,0.000246,2]
[314034420,1707933031961,-3000.0,0.00025,2]
[314034422,1707933031970,-895.53115528,0.0002501,2]
[314034424,1707933031982,-2104.46884472,0.0002501,2]
[314034426,1707933031990,-3000.0,0.0002502,2]
[314034428,1707933031999,-3000.0,0.0002503,2]
[314034429,1707933032008,-3000.0,0.0002504,2]
[314034431,1707933032017,-4321.08369,0.0002505,2]
[314034433,1707933032026,-500.0,0.000274,7]
[314034435,1707933032035,-1673.96370018,0.00028334,28]
[314034436,1707933032044,-403.76,0.00028337,2]
[314034438,1707933032053,-150.0,0.000284,2]
[314034440,1707933032063,-1554.55928874,0.00028898,2]
[314034441,1707933032072,-500.0,0.00029374,2]
[314034443,1707933032081,-1988.41,0.0002946,2]
[314034445,1707933032090,-155.0,0.0003,2]
[314034447,1707933032099,-837.88,0.00030139,2]
[314034448,1707933032108,-507.72,0.00030276,2]
[314034450,1707933032117,-2000.0,0.00030283,2]
[314034452,1707933032126,-250.0,0.00030319,2]
[314034453,1707933032135,-250.0,0.00030331,2]
[314034455,1707933032144,-500.0,0.00030391,2]
[314034456,1707933032153,-1000.0,0.00030391,2]
[314034458,1707933032201,-200.0,0.00030578,2]
[314034459,1707933032210,-150.0,0.00030578,2]